bitfinex/quotes_ETHUSD_20250223
["timestamp","ask_amount","ask_price","bid_price","bid_amount"]
[1740352589647,0.7827,2842.9,2841.2,3.51962]
[1740352589846,3.5183,2842.3,2840.8,0.7732]
[1740352590169,3.51906,2841.7,2840.8,0.7732]
[1740352590342,1.33426734,2841.7,2840.8,0.7732]
[1740352590493,3.51998,2841.0,2840.3,7.10236]
[1740352590689,0.60902188,2842.1,2840.1,0.8128]
[1740352590911,0.7947,2841.7,2839.5,0.8128]
[1740352591110,3.0,2841.2,2838.9,0.8128]
[1740352591309,3.69837098,2841.0,2838.9,0.8128]
[1740352591626,3.52005,2840.9,2838.9,7.91516]
[1740352591826,11.43779,2841.1,2840.0,3.52101]
[1740352592001,3.52001,2840.9,2840.2,3.52075]
[1740352592349,0.7947,2841.7,2840.6,3.52031]
[1740352592493,3.51923,2841.6,2840.8,3.52012]
[1740352592692,3.51863,2842.1,2841.0,3.51987]
[1740352592998,3.51973,2841.2,2840.3,0.8091]
[1740352593213,3.51852,2842.1,2840.3,0.8091]
[1740352593422,3.51877,2841.9,2840.3,0.8091]
[1740352593593,3.71680922,2842.2,2839.6,0.8091]
[1740352593789,3.51979,2841.1,2839.8,0.55]
[1740352593990,3.51979,2841.1,2840.1,0.55]
[1740352593991,3.52015,2840.8,2840.1,0.55]
[1740352594208,3.52015,2840.8,2840.1,4.07097]
[1740352594404,3.52015,2840.8,2840.2,3.52081]
[1740352594602,3.52074,2840.4,2839.6,4.3307]
[1740352594800,3.5699479,2841.8,2839.9,3.52118]
[1740352595005,3.52012,2840.9,2840.1,3.52097]
[1740352595217,0.83997943,2841.7,2840.4,3.52053]
[1740352595218,3.51914,2841.6,2840.4,3.52053]
[1740352595532,3.51976,2841.1,2839.8,4.07126]
[1740352595700,3.51926,2841.6,2840.0,0.55]
[1740352595894,3.51948,2841.4,2840.1,3.521]
[1740352596134,3.51948,2841.4,2840.2,0.4071]
[1740352596328,3.51852,2842.1,2839.8,3.0]
[1740352596495,3.0,2842.2,2839.8,3.0]
[1740352596496,3.52061,2840.5,2839.8,3.0]
[1740352597032,3.52012,2840.9,2840.1,3.52091]
[1740352597232,3.51955,2841.3,2839.8,3.0]
[1740352597444,3.51931,2841.5,2840.6,3.52029]
[1740352597641,3.52015,2840.8,2840.1,3.52089]
[1740352597942,3.0,2842.2,2839.9,3.5212]
[1740352597943,3.52061,2840.5,2839.9,3.5212]
[1740352598230,3.52088,2840.2,2839.6,4.33069]
[1740352598401,3.52088,2840.2,2839.6,0.8091]
[1740352598601,0.7631,2841.0,2839.9,3.52115]
[1740352598836,3.52039,2840.6,2839.9,3.52115]
[1740352599007,0.7631,2841.0,2839.7,0.55]
[1740352599207,3.52021,2840.8,2840.1,3.52094]
[1740352599415,3.51977,2841.1,2840.5,3.5205]
[1740352599622,8.6978,2841.6,2840.8,3.52011]
[1740352599623,3.51936,2841.5,2840.8,3.52011]
[1740352599810,3.51915,2841.6,2841.0,3.51987]
[1740352600148,3.51914,2841.6,2840.8,3.52003]
[1740352600296,8.6978,2842.2,2839.9,8.35109643]
[1740352600297,8.6978,2842.2,2840.0,7.10236]
[1740352600631,3.52028,2840.7,2840.2,3.52086]
[1740352600850,3.52057,2840.5,2839.9,3.52118]
[1740352600994,3.51935,2841.5,2839.7,3.52137]
[1740352601199,3.52063,2840.4,2839.9,3.52125]
[1740352601450,3.52046,2840.6,2840.0,3.52101]
[1740352601652,3.51972,2841.2,2839.6,0.8091]
[1740352601801,3.52074,2840.4,2839.7,3.52145]
[1740352602257,3.52074,2840.4,2839.1,6.52221]
[1740352602258,3.5214,2839.8,2839.1,3.52221]
[1740352602600,3.5214,2839.8,2839.0,0.7527]
[1740352602601,3.5218,2839.5,2839.0,0.7527]
[1740352602796,0.757,2840.9,2838.5,3.52296]
[1740352602797,0.635,2840.6,2838.5,3.52296]
[1740352603109,3.52197,2839.4,2838.7,3.52264]
[1740352603296,3.52087,2840.2,2838.4,0.7527]
[1740352603503,3.52166,2839.6,2838.4,4.27578]
[1740352603745,3.52175,2839.5,2838.9,3.52239]
[1740352604152,3.52166,2839.6,2838.9,3.52239]
[1740352604364,3.52123,2840.0,2839.3,3.52195]
[1740352604664,3.52131,2839.9,2839.0,3.52224]
[1740352604823,3.52094,2840.2,2839.0,0.352224]
[1740352605025,3.52113,2840.0,2839.4,3.52184]
[1740352605338,3.52113,2840.0,2838.9,3.52244]
[1740352605339,3.52029,2840.7,2838.9,7.04498]
[1740352605548,3.52133,2839.9,2839.2,3.52205]
[1740352605750,0.757,2840.9,2838.7,7.10236]
[1740352606041,3.52084,2840.3,2839.6,3.52154]
[1740352606249,3.52084,2840.3,2839.6,3.52152]
[1740352606583,4.27705,2840.9,2839.7,3.5214]
[1740352606786,3.52045,2840.6,2839.1,0.55]
[1740352607086,3.51989,2841.0,2840.3,3.52074]
[1740352607285,0.628,2841.2,2839.4,7.10236]
[1740352607494,3.52071,2840.4,2839.8,3.52125]
[1740352607984,3.52053,2840.5,2839.9,3.52123]
[1740352608338,3.52053,2840.5,2839.4,3.52183]
[1740352608339,0.628,2841.2,2839.4,3.52177]
[1740352608545,0.628,2841.2,2839.0,6.5223]
[1740352608546,3.52085,2840.3,2839.6,3.52153]
[1740352608794,3.52122,2840.0,2839.2,4.287266]
[1740352609020,3.52124,2840.0,2839.3,3.52193]
[1740352609146,3.52126,2839.9,2839.3,3.52193]
[1740352609341,0.69958237,2840.9,2838.3,4.82984643]
[1740352609542,3.52215,2839.2,2838.6,3.52279]
[1740352609779,3.52154,2839.7,2837.8,7.10236]
[1740352609943,3.52272,2838.8,2838.1,3.52341]
[1740352610144,3.52278,2838.7,2838.1,3.52339]
[1740352610380,3.52268,2838.8,2837.7,0.7847]
[1740352610636,3.52287,2838.6,2837.9,3.52366]
[1740352610955,0.352154,2839.6,2837.9,3.52363]
[1740352610956,3.52187,2839.4,2837.9,3.52363]
[1740352611177,3.52317,2838.4,2837.7,4.3086]
[1740352611374,3.52332,2838.3,2837.7,0.7847]
[1740352611684,0.69005897,2839.6,2838.3,3.5232]
[1740352611884,3.52249,2838.9,2838.3,3.5232]
[1740352612042,3.52249,2838.9,2838.2,3.52335]
[1740352612242,3.52277,2838.7,2838.0,3.5235]
[1740352612446,0.69005897,2839.6,2837.7,0.7847]
[1740352612756,3.52291,2838.6,2838.0,3.52356]
[1740352613393,3.52236,2839.1,2837.2,3.5246]
[1740352613540,3.52211,2839.2,2838.1,3.52342]
[1740352613740,3.52288,2838.6,2838.0,3.52354]
[1740352613940,3.52246,2839.0,2838.3,3.52314]
[1740352614162,3.52246,2839.0,2838.4,3.52299]
[1740352614417,0.8215,2839.5,2837.4,5.37984643]
[1740352614418,3.52194,2839.4,2838.7,3.52261]
[1740352614614,0.7572,2840.1,2838.1,0.55]
[1740352614820,0.7572,2840.1,2839.4,3.52182]
[1740352614985,3.52077,2840.3,2839.6,3.52155]
[1740352615191,3.52064,2840.4,2839.8,3.52129]
[1740352615405,3.5205,2840.5,2839.8,3.52129]
[1740352615599,5.25,2842.5,2839.8,3.52129]
[1740352615600,3.51984,2841.1,2840.4,3.52056]
[1740352615931,3.52026,2840.7,2839.8,0.352129]
[1740352616083,3.51982,2841.1,2839.4,4.82984643]
[1740352616283,3.51982,2841.1,2839.2,10.10236]
[1740352616284,3.52071,2840.4,2839.7,3.52142]
[1740352616484,3.52071,2840.4,2839.7,7.04284]
[1740352616721,3.52043,2840.6,2839.9,3.52116]
[1740352616986,3.52067,2840.4,2839.8,3.52133]
[1740352617300,3.52043,2840.6,2839.4,0.55]
[1740352617524,3.52043,2840.6,2839.9,3.52113]
[1740352617721,3.0,2841.3,2839.4,1.172432]
[1740352617922,3.52149,2839.7,2839.1,4.32933]
[1740352618104,3.52129,2839.9,2839.1,4.3294]
[1740352618419,3.52133,2839.9,2839.2,3.52208]
[1740352618622,0.71434368,2840.6,2838.8,3.52261]
[1740352618623,3.52186,2839.5,2838.8,3.52255]
[1740352618838,3.52186,2839.5,2838.9,3.52246]
[1740352618990,0.7509,2840.2,2838.7,0.7955]
[1740352619192,3.52179,2839.5,2838.7,0.7955]
[1740352619504,0.7509,2840.2,2838.1,0.7955]
[1740352619713,3.52269,2838.8,2838.2,3.52325]
[1740352619918,3.52257,2838.9,2838.3,4.04700958]
[1740352620117,3.52262,2838.8,2838.3,0.52378958]
[1740352620316,11.43537,2839.8,2838.3,0.52378958]
[1740352620317,3.52293,2838.6,2838.3,0.52378958]
[1740352620609,3.52331,2838.3,2837.6,3.52399]
[1740352620812,4.0915679,2839.6,2837.4,0.52378958]
[1740352621105,3.52265,2838.8,2837.7,8.35378643]
[1740352621308,3.52305,2838.5,2837.9,3.5237]
[1740352621640,3.52347,2838.2,2837.5,3.52411]
[1740352621943,3.52336,2838.2,2837.6,3.524]
[1740352622087,3.52336,2838.2,2837.5,3.52422]
[1740352622088,3.52336,2838.2,2837.7,3.52397]
[1740352622643,7.04683,2838.2,2837.5,7.04837]
[1740352622788,0.8118,2838.9,2837.3,0.7955]
[1740352622789,3.52309,2838.5,2837.3,0.7955]
[1740352622989,0.938309,2838.4,2837.1,0.52378958]
[1740352623227,0.938309,2838.4,2836.6,0.52378958]
[1740352623228,3.52488,2837.0,2836.6,0.52378958]
[1740352623443,0.586,2838.4,2836.6,0.52378958]
[1740352623444,3.52465,2837.2,2836.6,4.04907958]
[1740352623608,4.6791079,2838.4,2836.7,3.52522]
[1740352623609,0.586,2838.4,2836.7,3.52522]
[1740352623928,0.586,2838.4,2836.6,0.52378958]
[1740352623929,3.52499,2836.9,2836.6,0.52378958]
[1740352624232,3.52522,2836.7,2836.6,0.52378958]
[1740352624728,3.52483,2837.1,2836.4,3.52549]
[1740352625104,3.52419,2837.6,2837.0,3.52482]
[1740352625331,3.52419,2837.6,2837.0,3.52477]
[1740352625332,3.5241,2837.6,2837.0,3.52477]
[1740352625532,0.7772,2838.1,2836.5,0.55]
[1740352625745,3.52286,2838.6,2836.9,4.46470099]
[1740352625941,3.52398,2837.7,2837.2,3.52454]
[1740352626226,3.52469,2837.2,2836.5,3.52538]
[1740352626431,5.25,2838.6,2837.1,3.52465]
[1740352626432,8.77292,2838.6,2837.1,3.52465]
[1740352626626,3.52368,2838.0,2837.3,3.52439]
[1740352626834,3.5232,2838.4,2837.7,3.5239]
[1740352626992,3.52333,2838.3,2837.7,3.5239]
[1740352627190,0.69667329,2838.7,2837.0,0.55]
[1740352627191,3.52293,2838.6,2837.1,3.52472]
[1740352627395,0.7772,2838.8,2837.4,0.55]
[1740352627631,3.52221,2839.2,2838.4,3.52309]
[1740352627939,7.04494,2839.0,2838.4,3.52303]
[1740352628135,3.52247,2839.0,2838.4,3.52303]
[1740352628442,3.52171,2839.6,2838.2,3.52335]
[1740352628732,3.52171,2839.6,2839.0,3.52232]
[1740352629071,3.52171,2839.6,2839.0,3.52227]
[1740352629232,0.7952,2840.0,2838.6,4.90086]
[1740352629433,0.7952,2840.0,2839.3,3.5219]
[1740352629434,3.52126,2839.9,2839.3,3.5219]
[1740352629648,3.52126,2839.9,2839.4,3.52184]
[1740352629796,3.52126,2839.9,2839.3,3.5219]
[1740352630141,0.7952,2840.0,2838.6,0.828]
[1740352630298,0.7952,2840.0,2838.7,3.52264]
[1740352630499,3.52213,2839.2,2838.6,3.52277]
[1740352630720,3.52125,2839.9,2838.3,7.10236]
[1740352630923,0.7952,2840.0,2838.0,9.74156]
[1740352630924,3.52219,2839.2,2838.0,9.74156]
[1740352631108,3.52139,2839.8,2839.1,3.52221]
[1740352631308,3.52132,2839.9,2839.3,3.5219]
[1740352631511,3.52174,2839.6,2838.9,7.04482]
[1740352631738,3.52174,2839.6,2839.0,3.52227]
[1740352631910,3.52174,2839.6,2839.1,3.52221]
[1740352632114,3.52139,2839.8,2839.2,3.52203]
[1740352632517,3.52139,2839.8,2839.1,3.52217]
[1740352632853,4.31639,2840.0,2839.3,3.52197]
[1740352633152,3.5209,2840.2,2839.6,3.52153]
[1740352633321,0.7196987,2840.3,2839.4,3.52186]
[1740352633529,3.52105,2840.1,2839.5,3.52171]
[1740352633710,3.52105,2840.1,2838.2,7.43799099]
[1740352633711,3.52101,2840.1,2838.2,7.43799099]
[1740352633910,0.352101,2840.0,2838.3,3.52316]
[1740352634206,0.352101,2840.0,2838.7,3.52269]
[1740352634207,3.52193,2839.4,2838.7,3.52269]
[1740352634411,0.352101,2840.0,2838.5,3.52287]
[1740352634612,3.52204,2839.3,2838.7,3.52266]
[1740352634812,4.0912379,2839.9,2838.1,3.52341]
[1740352635122,3.52216,2839.2,2838.0,0.828]
[1740352635328,3.52209,2839.3,2838.7,3.52265]
[1740352635526,3.5222,2839.2,2838.5,3.52287]
[1740352635748,3.5222,2839.2,2838.5,3.52294]
[1740352635955,0.7435581,2840.1,2839.1,3.52223]
[1740352636159,5.25,2840.4,2838.3,3.91470099]
[1740352636462,3.52107,2840.1,2839.5,3.52171]
[1740352636752,4.9216879,2840.6,2838.7,0.55]
[1740352636952,1.27354028,2840.4,2838.4,8.39]
[1740352637122,0.70359238,2840.4,2838.5,4.07298]
[1740352637329,7.04367,2839.5,2838.9,3.52244]
[1740352637510,3.52182,2839.5,2839.0,3.52236]
[1740352637711,3.52154,2839.7,2839.0,3.52236]
[1740352637958,4.38290924,2840.3,2838.6,3.52286]
[1740352637959,3.52132,2839.9,2838.6,3.52286]
[1740352638143,4.38291924,2840.3,2838.9,3.52241]
[1740352638342,3.52217,2839.2,2838.5,3.5229]
[1740352639138,0.50865116,2840.2,2838.1,0.435164]
[1740352639347,3.52151,2839.7,2838.4,3.52301]
[1740352639648,3.52255,2838.9,2838.4,3.52304]
[1740352639851,3.52151,2839.7,2838.0,0.828]
[1740352640057,3.52324,2838.3,2837.6,3.52406]
[1740352640214,3.52354,2838.1,2837.4,4.32136]
[1740352640421,3.52264,2838.8,2837.5,3.52422]
[1740352640751,3.5228,2838.7,2838.2,3.52326]
[1740352641155,4.680121,2839.6,2837.6,3.5241]
[1740352641342,3.52252,2838.9,2838.3,3.52313]
[1740352641653,3.52247,2839.0,2838.4,3.52304]
[1740352642019,3.52283,2838.7,2838.2,3.5233]
[1740352642655,3.52306,2838.5,2838.0,3.52353]
[1740352643155,3.52282,2838.7,2838.2,3.5233]
[1740352643464,3.523,2838.5,2838.0,3.52352]
[1740352643757,3.52322,2838.4,2837.9,3.52361]
[1740352643926,3.52294,2838.6,2838.1,3.52342]
[1740352644473,3.52211,2839.2,2838.1,7.0468]
[1740352644624,1.48874807,2839.5,2838.5,3.52298]
[1740352644829,3.52218,2839.2,2838.6,3.52278]
[1740352645030,7.04439,2839.2,2838.6,3.52278]
[1740352645280,3.52218,2839.2,2838.6,3.52278]
[1740352645430,3.52244,2839.0,2838.4,3.52306]
[1740352645631,3.52244,2839.0,2838.4,3.52303]
[1740352645826,3.52204,2839.3,2838.2,3.52334]
[1740352646076,3.52144,2839.8,2839.1,3.52212]
[1740352646245,3.52144,2839.8,2839.2,3.52202]
[1740352646581,3.52153,2839.7,2839.2,3.52202]
[1740352646727,3.52107,2840.1,2838.8,3.52261]
[1740352646927,3.52119,2840.0,2839.4,3.52179]
[1740352647140,1.50114883,2840.2,2838.7,3.91470099]
[1740352647343,3.5212,2840.0,2838.9,3.52239]
[1740352647545,3.52183,2839.5,2839.0,3.52235]
[1740352647741,3.52163,2839.6,2838.9,3.52239]
[1740352647956,3.52163,2839.6,2838.4,7.65236]
[1740352647957,0.71953668,2840.0,2838.0,4.33071]
[1740352648141,0.71953668,2840.0,2838.3,0.55]
[1740352648342,3.52106,2840.1,2839.5,3.52162]
[1740352648680,3.52106,2840.1,2839.2,3.522]
[1740352648841,3.52106,2840.1,2839.5,3.52174]
[1740352649265,3.52106,2840.1,2839.6,3.52161]
[1740352649901,3.0,2840.6,2839.6,3.52161]
[1740352650036,7.916,2840.9,2840.3,3.52066]
[1740352650037,11.43601,2840.9,2840.3,3.52066]
[1740352650242,3.52013,2840.8,2839.7,0.55]
[1740352650443,4.2240079,2841.0,2840.3,3.52066]
[1740352650644,3.52003,2840.9,2840.4,3.52061]
[1740352650844,3.52003,2840.9,2840.3,3.52066]
[1740352651076,3.51976,2841.1,2840.4,3.52055]
[1740352651290,4.33263,2841.4,2840.1,3.91470099]
[1740352651501,3.51935,2841.5,2840.9,3.51993]
[1740352651646,0.69192262,2841.7,2841.1,3.51969]
[1740352651841,0.8323,2842.1,2840.6,0.7849]
[1740352652082,0.5699479,2841.7,2840.0,7.88726]
[1740352652254,0.70596286,2841.1,2839.7,3.52142]
[1740352652454,6.51932,2841.5,2839.9,3.52117]
[1740352652783,3.52043,2840.6,2839.9,3.52116]
[1740352652987,0.69015877,2841.2,2840.3,3.52073]
[1740352653288,0.5699479,2841.9,2840.0,4.07107]
[1740352653447,0.5699479,2841.9,2840.4,3.52054]
[1740352653448,3.51997,2841.0,2840.4,3.52054]
[1740352653770,3.51989,2841.0,2840.2,3.52077]
[1740352653967,3.51989,2841.0,2839.7,4.38054909]
[1740352653968,3.51939,2841.4,2839.7,4.38054909]
[1740352654162,3.52038,2840.6,2839.1,3.91470099]
[1740352654362,3.52147,2839.8,2839.2,3.52204]
[1740352654645,3.52084,2840.3,2839.6,3.52151]
[1740352654846,3.52138,2839.8,2839.3,3.52199]
[1740352655152,3.52151,2839.7,2839.1,3.52223]
[1740352655346,3.52208,2839.3,2838.9,0.8031]
[1740352655552,3.5218,2839.5,2838.9,0.8031]
[1740352655748,3.5218,2839.5,2839.0,3.52234]
[1740352655948,3.52162,2839.6,2839.1,3.52221]
[1740352656161,3.52166,2839.6,2838.9,4.32551]
[1740352656452,3.52077,2840.3,2839.7,3.5214]
[1740352656676,3.521,2840.1,2839.0,0.55]
[1740352656873,0.7888,2840.8,2839.3,3.52196]
[1740352656874,3.52061,2840.5,2839.3,3.52196]
[1740352657074,0.699613,2840.6,2840.0,3.52104]
[1740352657286,3.52052,2840.5,2838.9,8.67280199]
[1740352657487,3.52019,2840.8,2840.3,3.52071]
[1740352657687,3.52006,2840.9,2840.3,3.52071]
[1740352657851,7.04017,2840.9,2840.3,3.52068]
[1740352658051,7.913,2841.1,2840.4,3.52055]
[1740352658296,3.5199,2841.0,2840.5,3.52049]
[1740352658606,7.913,2841.1,2840.2,3.52079]
[1740352658750,0.71160466,2841.4,2840.3,7.10236]
[1740352658954,3.51951,2841.3,2840.7,7.04032]
[1740352659188,0.515,2842.0,2840.3,7.10236]
[1740352659189,3.5191,2841.7,2840.5,0.55]
[1740352659344,3.51933,2841.5,2840.7,3.52024]
[1740352659558,0.515,2842.0,2840.6,0.55]
[1740352659948,7.03771,2841.9,2841.2,3.51962]
[1740352660162,7.914,2842.5,2840.6,3.52038]
[1740352660163,4.21410008,2842.3,2841.4,3.5193]
[1740352660487,3.51852,2842.1,2841.4,3.5193]
[1740352660667,3.51798,2842.6,2841.9,3.51875]
[1740352660988,3.51717,2843.2,2842.5,3.51799]
[1740352661295,3.0,2843.2,2841.4,7.78595099]
[1740352661488,3.51817,2842.4,2841.6,3.51913]
[1740352661668,3.51829,2842.3,2841.7,0.55]
[1740352661867,0.8279,2843.1,2841.7,0.55]
[1740352662047,3.51741,2843.0,2841.4,3.87128]
[1740352662386,3.51833,2842.3,2841.6,3.51911]
[1740352662687,3.51959,2841.3,2840.8,0.9776449]
[1740352662874,3.51903,2841.7,2840.9,3.51992]
[1740352663187,3.51947,2841.4,2840.8,0.9776449]
[1740352663485,3.51977,2841.1,2840.8,0.9776449]
[1740352663699,3.52001,2840.9,2840.8,0.1532449]
[1740352663849,3.51999,2841.0,2840.8,0.1532449]
[1740352664052,3.52001,2840.9,2840.8,0.1532449]
[1740352664790,3.51889,2841.8,2840.8,0.1532449]
[1740352664991,3.52001,2840.9,2840.8,0.1532449]
[1740352665156,3.51988,2841.0,2840.8,0.1532449]
[1740352665352,3.51978,2841.1,2840.8,0.1532449]
[1740352665668,0.50016022,2841.7,2840.8,0.1532449]
[1740352665669,3.52001,2840.9,2840.8,0.1532449]
[1740352665880,0.50016022,2841.7,2840.8,0.1532449]
[1740352666189,0.7706,2841.9,2840.8,0.1532449]
[1740352666363,3.5197,2841.2,2840.8,0.1532449]
[1740352666592,3.51978,2841.1,2840.8,0.1532449]
[1740352667496,3.51946,2841.4,2840.8,0.1532449]
[1740352667792,3.51934,2841.5,2840.8,3.6733049]
[1740352667991,3.51946,2841.4,2840.8,3.6733049]
[1740352668309,4.98595037,2841.9,2840.8,0.1532449]
[1740352668310,3.51951,2841.3,2840.8,0.1532449]
[1740352668469,3.51934,2841.5,2840.8,0.1532449]
[1740352668659,0.7757,2842.4,2840.9,0.7941]
[1740352668857,3.5181,2842.5,2841.7,3.51901]
[1740352669055,0.7757,2843.0,2841.7,3.51901]
[1740352669056,0.26198459,2842.9,2841.7,3.51901]
[1740352669254,3.51816,2842.4,2841.9,3.51876]
[1740352669617,3.51769,2842.8,2842.2,3.51828]
[1740352669776,3.51691,2843.4,2841.9,0.703777]
[1740352670090,3.51691,2843.4,2839.9,0.1]
[1740352670091,3.51816,2842.4,2841.8,3.51878]
[1740352670310,3.51798,2842.6,2842.0,3.51862]
[1740352670661,3.5178,2842.7,2842.0,3.5186]
[1740352670890,3.51771,2842.8,2842.3,3.51826]
[1740352671190,3.51753,2842.9,2842.3,3.51826]
[1740352671382,3.51746,2843.0,2842.4,3.51811]
[1740352671801,0.69890766,2843.3,2842.4,3.51811]
[1740352672019,3.51752,2843.0,2842.4,3.51811]
[1740352672176,3.51766,2842.8,2842.2,7.03669]
[1740352672514,3.51752,2843.0,2842.2,0.55]
[1740352672717,3.51752,2843.0,2842.3,7.03637]
[1740352673103,3.51764,2842.9,2842.3,3.51818]
[1740352673659,4.21604766,2843.3,2842.2,0.55]
[1740352673859,3.51764,2842.9,2842.3,3.5182]
[1740352674179,3.51698,2843.4,2842.4,0.55]
[1740352674350,1.3605,2843.6,2843.0,0.55]
[1740352674351,0.55,2843.6,2843.0,0.55]
[1740352674639,0.55,2843.6,2843.2,3.51709]
[1740352674788,0.55,2843.6,2842.5,0.55]
[1740352674987,0.55,2843.6,2843.1,3.5172]
[1740352675225,0.55,2843.6,2842.6,3.96359676]
[1740352675226,0.55,2843.6,2843.4,0.7664]
[1740352675401,0.55,2843.6,2843.5,4.06679]
[1740352676521,7.64266594,2845.7,2843.5,4.06679]
[1740352676522,3.77453317,2845.9,2843.5,7.06676]
[1740352676727,0.7053392,2845.6,2843.5,3.90696763]
[1740352676929,3.51494,2845.0,2843.8,3.51636]
[1740352677090,0.7053392,2845.6,2844.3,0.7875]
[1740352677294,3.51443,2845.5,2844.9,3.51504]
[1740352677591,3.51615,2844.1,2843.5,0.7875]
[1740352677900,3.51519,2844.8,2844.0,3.51609]
[1740352678104,3.51506,2844.9,2844.2,3.51584]
[1740352678299,3.51545,2844.6,2843.8,7.58264]
[1740352678500,3.51529,2844.8,2843.8,4.06629]
[1740352678801,3.51529,2844.8,2844.1,3.51599]
[1740352678802,3.51526,2844.8,2844.1,3.51599]
[1740352679029,3.515,2845.0,2844.0,0.55]
[1740352679231,0.26019383,2846.1,2843.6,3.0]
[1740352679443,0.8192,2846.2,2844.7,0.8189]
[1740352679739,3.51404,2845.8,2845.0,3.51483]
[1740352679944,4.22052695,2845.8,2845.0,7.02968]
[1740352680123,3.51514,2844.9,2844.2,0.8189]
[1740352680330,0.70646695,2845.8,2844.2,0.8189]
[1740352680524,3.51458,2845.3,2844.6,7.03071]
[1740352680836,3.51458,2845.3,2844.6,3.51534]
[1740352681044,3.51446,2845.4,2844.6,3.51534]
[1740352681244,3.51387,2845.9,2845.0,3.51487]
[1740352681429,3.51377,2846.0,2845.3,3.51448]
[1740352681745,3.51377,2846.0,2845.2,3.51461]
[1740352681746,3.51395,2845.8,2845.2,3.51461]
[1740352681905,3.5128,2846.8,2845.2,3.51461]
[1740352681906,0.71422025,2846.5,2845.3,0.8125]
[1740352682240,3.51274,2846.8,2846.1,3.51354]
[1740352682457,0.70950704,2847.2,2845.7,0.55]
[1740352682600,0.70950704,2847.2,2845.4,0.47194676]
[1740352682805,3.51327,2846.4,2845.3,0.8125]
[1740352683123,0.804,2846.3,2844.5,0.8125]
[1740352683316,4.31736,2846.3,2844.7,0.55]
[1740352683519,0.804,2846.3,2844.5,0.8125]
[1740352683818,3.51505,2845.0,2844.5,0.8125]
[1740352684174,3.51417,2845.7,2844.5,4.32801]
[1740352684304,3.51417,2845.7,2844.9,3.51496]
[1740352684305,0.351417,2845.7,2844.9,3.51496]
[1740352684509,3.51386,2845.9,2844.7,3.51523]
[1740352684709,3.51452,2845.4,2844.6,3.51537]
[1740352684911,3.51436,2845.5,2844.7,3.51526]
[1740352685117,3.51427,2845.6,2844.7,3.51526]
[1740352685342,3.514,2845.8,2844.6,3.51543]
[1740352685551,4.31742,2846.3,2844.5,0.8125]
[1740352685552,3.51366,2846.1,2844.9,3.51499]
[1740352685849,3.5137,2846.0,2845.2,3.51463]
[1740352686053,3.51475,2845.2,2844.5,0.8125]
[1740352686265,3.51475,2845.2,2844.5,4.32799]
[1740352686426,3.51543,2844.6,2844.5,0.8125]
[1740352686751,3.51488,2845.1,2844.3,3.51571]
[1740352687047,3.51488,2845.1,2844.5,3.51555]
[1740352687254,3.51488,2845.1,2843.8,16.00872]
[1740352687255,0.70133802,2846.0,2844.2,3.51589]
[1740352687456,3.51489,2845.1,2844.4,3.5156]
[1740352687854,3.51488,2845.1,2844.2,0.55]
[1740352688019,3.51488,2845.1,2844.5,3.51555]
[1740352688356,3.51518,2844.9,2844.2,0.55]
[1740352688514,3.51493,2845.1,2844.4,3.51557]
[1740352688714,3.51495,2845.0,2844.3,3.51572]
[1740352688914,3.51494,2845.0,2844.3,3.51574]
[1740352689111,3.51504,2845.0,2844.1,3.51596]
[1740352689419,3.51459,2845.3,2844.6,3.51536]
[1740352689614,3.51471,2845.2,2844.4,3.51562]
[1740352689834,3.51347,2846.2,2844.5,0.55]
[1740352690029,3.51347,2846.2,2844.4,0.7575]
[1740352690030,0.351347,2846.1,2844.4,0.7575]
[1740352690353,3.51457,2845.3,2844.6,0.55]
[1740352690517,3.90696763,2845.8,2843.9,0.7575]
[1740352690714,3.5158,2844.3,2843.9,0.7575]
[1740352690913,3.51562,2844.5,2843.8,7.10236]
[1740352691144,3.51627,2844.0,2843.8,7.10236]
[1740352691314,0.7927,2845.1,2843.8,7.10236]
[1740352691858,0.46996676,2845.1,2844.4,3.5156]
[1740352692017,3.51464,2845.3,2844.5,3.51547]
[1740352692356,0.7759,2846.3,2844.4,3.55]
[1740352692515,0.7759,2846.3,2845.3,3.51445]
[1740352692872,3.51353,2846.2,2845.4,3.51437]
[1740352693062,3.51291,2846.7,2845.1,0.55]
[1740352693265,0.7733,2846.9,2846.0,3.51363]
[1740352693470,3.51256,2847.0,2846.2,3.51344]
[1740352693665,3.51234,2847.1,2846.4,3.51314]
[1740352693969,0.7733,2847.5,2846.1,3.51354]
[1740352693970,3.5127,2846.9,2846.1,3.51354]
[1740352694162,3.51301,2846.6,2845.9,3.51373]
[1740352694354,0.98319985,2847.4,2846.2,3.51344]
[1740352694578,3.51213,2847.3,2846.4,3.51313]
[1740352694751,3.51354,2846.2,2845.5,0.7811]
[1740352695079,0.8149,2846.3,2844.7,0.7715]
[1740352695367,0.8149,2846.3,2844.6,0.52378958]
[1740352695535,0.8149,2846.3,2844.8,0.55]
[1740352695741,0.8149,2846.3,2845.2,0.55]
[1740352695742,3.51386,2845.9,2845.2,0.55]
[1740352695939,3.5137,2846.0,2845.3,3.51447]
[1740352696157,3.51328,2846.4,2845.5,3.5142]
[1740352696459,3.51354,2846.2,2845.3,16.00685]
[1740352696628,3.51354,2846.2,2845.4,3.51442]
[1740352696826,3.51444,2845.4,2845.3,12.49236]
[1740352697456,3.5141,2845.7,2844.3,0.52378958]
[1740352697652,3.51476,2845.2,2844.3,0.52378958]